{"text_format":"3","workbook":"xlsx","n_sheets":7,"sheets":["Понеділок","Вівторок","Середа","Четвер","П’ятниця","Субота","Неділя"],"not_rendered":{"defined_names":24},"read":"whole","date_system":"1900"}

{"sheet":"Понеділок","index":0,"n_rows":10,"n_cols":13,"rows_kept":10,"merged":[[1,1,2,1],[1,2,1,10],[1,11,1,12],[2,2,2,10],[2,11,2,12]]}
[null,"ГРАФІК ЗМІН"]
[null,"ПОНЕДІЛОК","На тиждень: ",{"$nulls":8},"ДАТА"]
[null,null,"Назва відділу: ",{"$nulls":8},"ВІДДІЛ"]
[null,"Ім’я працівника","07:00","08:00","09:00","10:00","11:00","12:00","13:00","14:00","15:00","Лікарняне?","УСЬОГО"]
[null,"Богдана В","керівник","керівник","керівник","керівник","керівник","керівник","керівник","керівник","керівник",null,{"$f":"IFERROR(COUNTIF(Понеділок[[#This Row],[07:00]:[15:00]],\"*\"),\"\")","v":9}]
[null,"Євген О",null,"касир","касир","касир","касир",{"$nulls":5},{"$f":"IFERROR(COUNTIF(Понеділок[[#This Row],[07:00]:[15:00]],\"*\"),\"\")","v":4}]
[null,"Павло П",null,"адміністратор","адміністратор","адміністратор","адміністратор ","адміністратор","адміністратор","адміністратор",null,null,{"$f":"IFERROR(COUNTIF(Понеділок[[#This Row],[07:00]:[15:00]],\"*\"),\"\")","v":7}]
[null,"Степан К",null,"адміністратор","адміністратор","адміністратор","адміністратор ","адміністратор","адміністратор","адміністратор",null,null,{"$f":"IFERROR(COUNTIF(Понеділок[[#This Row],[07:00]:[15:00]],\"*\"),\"\")","v":7}]
[null,"Іван К",{"$nulls":10},{"$f":"IFERROR(COUNTIF(Понеділок[[#This Row],[07:00]:[15:00]],\"*\"),\"\")","v":0}]
[null,"Вероніка Б",{"$nulls":5},"касир","касир","касир","касир",null,{"$f":"IFERROR(COUNTIF(Понеділок[[#This Row],[07:00]:[15:00]],\"*\"),\"\")","v":4}]

{"sheet":"Вівторок","index":1,"n_rows":10,"n_cols":13,"rows_kept":10,"merged":[[1,1,2,1],[1,2,1,10],[1,11,1,12],[2,2,2,10],[2,11,2,12]]}
[null,{"$f":"Заголовок_ГРАФІК_ЗМІН","v":"ГРАФІК ЗМІН"}]
[null,"ВІВТОРОК","На тиждень: ",{"$nulls":8},{"$f":"ДАТА","v":"ДАТА"}]
[null,null,"Назва відділу: ",{"$nulls":8},{"$f":"ВІДДІЛ","v":"ВІДДІЛ"}]
[null,"Ім’я працівника","07:00","08:00","09:00","10:00","11:00","12:00","13:00","14:00","15:00","Лікарняне?","УСЬОГО"]
[null,"Богдана В","керівник","керівник","керівник","керівник","керівник","керівник","керівник","керівник","керівник",null,{"$f":"IFERROR(COUNTIF(Вівторок[[#This Row],[07:00]:[15:00]],\"*\"),\"\")","v":9}]
[null,"Євген О",null,"касир","касир","касир","касир",{"$nulls":5},{"$f":"IFERROR(COUNTIF(Вівторок[[#This Row],[07:00]:[15:00]],\"*\"),\"\")","v":4}]
[null,"Павло П",null,"адміністратор","адміністратор","адміністратор","адміністратор ","адміністратор","адміністратор","адміністратор",null,null,{"$f":"IFERROR(COUNTIF(Вівторок[[#This Row],[07:00]:[15:00]],\"*\"),\"\")","v":7}]
[null,"Степан К",null,"адміністратор","адміністратор","адміністратор","адміністратор ","адміністратор","адміністратор","адміністратор",null,null,{"$f":"IFERROR(COUNTIF(Вівторок[[#This Row],[07:00]:[15:00]],\"*\"),\"\")","v":7}]
[null,"Іван К",{"$nulls":9},"Лікарняне",{"$f":"IFERROR(COUNTIF(Вівторок[[#This Row],[07:00]:[15:00]],\"*\"),\"\")","v":0}]
[null,"Вероніка Б",{"$nulls":5},"касир","касир","касир","касир",null,{"$f":"IFERROR(COUNTIF(Вівторок[[#This Row],[07:00]:[15:00]],\"*\"),\"\")","v":4}]

{"sheet":"Середа","index":2,"n_rows":10,"n_cols":13,"rows_kept":10,"merged":[[1,1,2,1],[1,2,1,10],[1,11,1,12],[2,2,2,10],[2,11,2,12]]}
[null,{"$f":"Заголовок_ГРАФІК_ЗМІН","v":"ГРАФІК ЗМІН"}]
[null,"СЕРЕДА","На тиждень: ",{"$nulls":8},{"$f":"ДАТА","v":"ДАТА"}]
[null,null,"Назва відділу: ",{"$nulls":8},{"$f":"ВІДДІЛ","v":"ВІДДІЛ"}]
[null,"Ім’я працівника","07:00","08:00","09:00","10:00","11:00","12:00","13:00","14:00","15:00","Лікарняне?","УСЬОГО"]
[null,"Богдана В","керівник","керівник","керівник","керівник","керівник","керівник","керівник","керівник","керівник",null,{"$f":"IFERROR(COUNTIF(Середа[[#This Row],[07:00]:[15:00]],\"*\"),\"\")","v":9}]
[null,"Євген О",null,"касир","касир","касир","касир",{"$nulls":5},{"$f":"IFERROR(COUNTIF(Середа[[#This Row],[07:00]:[15:00]],\"*\"),\"\")","v":4}]
[null,"Павло П",null,"адміністратор","адміністратор","адміністратор","адміністратор ","адміністратор","адміністратор","адміністратор",null,null,{"$f":"IFERROR(COUNTIF(Середа[[#This Row],[07:00]:[15:00]],\"*\"),\"\")","v":7}]
[null,"Степан К",null,"адміністратор","адміністратор","адміністратор","адміністратор ","адміністратор","адміністратор","адміністратор",null,null,{"$f":"IFERROR(COUNTIF(Середа[[#This Row],[07:00]:[15:00]],\"*\"),\"\")","v":7}]
[null,"Іван К",{"$nulls":9},"Лікарняне",{"$f":"IFERROR(COUNTIF(Середа[[#This Row],[07:00]:[15:00]],\"*\"),\"\")","v":0}]
[null,"Вероніка Б",{"$nulls":5},"касир","касир","касир","касир",null,{"$f":"IFERROR(COUNTIF(Середа[[#This Row],[07:00]:[15:00]],\"*\"),\"\")","v":4}]

{"sheet":"Четвер","index":3,"n_rows":10,"n_cols":13,"rows_kept":10,"merged":[[1,1,2,1],[1,2,1,10],[1,11,1,12],[2,2,2,10],[2,11,2,12]]}
[null,{"$f":"Заголовок_ГРАФІК_ЗМІН","v":"ГРАФІК ЗМІН"}]
[null,"ЧЕТВЕР","На тиждень: ",{"$nulls":8},{"$f":"ДАТА","v":"ДАТА"}]
[null,null,"Назва відділу: ",{"$nulls":8},{"$f":"ВІДДІЛ","v":"ВІДДІЛ"}]
[null,"Ім’я працівника","07:00","08:00","09:00","10:00","11:00","12:00","13:00","14:00","15:00","Лікарняне?","УСЬОГО"]
[null,"Богдана В","керівник","керівник","керівник","керівник","керівник","керівник","керівник","керівник","керівник",null,{"$f":"IFERROR(COUNTIF(Четвер[[#This Row],[07:00]:[15:00]],\"*\"),\"\")","v":9}]
[null,"Євген О",null,"касир","касир","касир","касир",{"$nulls":5},{"$f":"IFERROR(COUNTIF(Четвер[[#This Row],[07:00]:[15:00]],\"*\"),\"\")","v":4}]
[null,"Павло П",null,"адміністратор","адміністратор","адміністратор","адміністратор ","адміністратор","адміністратор","адміністратор",null,null,{"$f":"IFERROR(COUNTIF(Четвер[[#This Row],[07:00]:[15:00]],\"*\"),\"\")","v":7}]
[null,"Степан К",null,"адміністратор","адміністратор","адміністратор","адміністратор ","адміністратор","адміністратор","адміністратор",null,null,{"$f":"IFERROR(COUNTIF(Четвер[[#This Row],[07:00]:[15:00]],\"*\"),\"\")","v":7}]
[null,"Іван К",{"$nulls":9},"Лікарняне",{"$f":"IFERROR(COUNTIF(Четвер[[#This Row],[07:00]:[15:00]],\"*\"),\"\")","v":0}]
[null,"Вероніка Б",{"$nulls":5},"касир","касир","касир","касир",null,{"$f":"IFERROR(COUNTIF(Четвер[[#This Row],[07:00]:[15:00]],\"*\"),\"\")","v":4}]

{"sheet":"П’ятниця","index":4,"n_rows":10,"n_cols":13,"rows_kept":10,"merged":[[1,1,2,1],[1,2,1,10],[1,11,1,12],[2,2,2,10],[2,11,2,12]]}
[null,{"$f":"Заголовок_ГРАФІК_ЗМІН","v":"ГРАФІК ЗМІН"}]
[null,"П’ЯТНИЦЯ","На тиждень: ",{"$nulls":8},{"$f":"ДАТА","v":"ДАТА"}]
[null,null,"Назва відділу: ",{"$nulls":8},{"$f":"ВІДДІЛ","v":"ВІДДІЛ"}]
[null,"Ім’я працівника","07:00","08:00","09:00","10:00","11:00","12:00","13:00","14:00","15:00","Лікарняне?","УСЬОГО"]
[null,"Богдана В","керівник","керівник","керівник","керівник","керівник","керівник","керівник","керівник","керівник",null,{"$f":"IFERROR(COUNTIF(Пятниця[[#This Row],[07:00]:[15:00]],\"*\"),\"\")","v":9}]
[null,"Євген О",null,"касир","касир","касир","касир",{"$nulls":5},{"$f":"IFERROR(COUNTIF(Пятниця[[#This Row],[07:00]:[15:00]],\"*\"),\"\")","v":4}]
[null,"Павло П",null,"адміністратор","адміністратор","адміністратор","адміністратор ","адміністратор","адміністратор","адміністратор",null,null,{"$f":"IFERROR(COUNTIF(Пятниця[[#This Row],[07:00]:[15:00]],\"*\"),\"\")","v":7}]
[null,"Степан К",null,"адміністратор","адміністратор","адміністратор","адміністратор ","адміністратор","адміністратор","адміністратор",null,null,{"$f":"IFERROR(COUNTIF(Пятниця[[#This Row],[07:00]:[15:00]],\"*\"),\"\")","v":7}]
[null,"Іван К",{"$nulls":9},"Лікарняне",{"$f":"IFERROR(COUNTIF(Пятниця[[#This Row],[07:00]:[15:00]],\"*\"),\"\")","v":0}]
[null,"Вероніка Б",{"$nulls":5},"касир","касир","касир","касир",null,{"$f":"IFERROR(COUNTIF(Пятниця[[#This Row],[07:00]:[15:00]],\"*\"),\"\")","v":4}]

{"sheet":"Субота","index":5,"n_rows":10,"n_cols":13,"rows_kept":10,"merged":[[1,1,2,1],[1,2,1,10],[1,11,1,12],[2,2,2,10],[2,11,2,12]]}
[null,{"$f":"Заголовок_ГРАФІК_ЗМІН","v":"ГРАФІК ЗМІН"}]
[null,"СУБОТА","На тиждень: ",{"$nulls":8},{"$f":"ДАТА","v":"ДАТА"}]
[null,null,"Назва відділу: ",{"$nulls":8},{"$f":"ВІДДІЛ","v":"ВІДДІЛ"}]
[null,"Ім’я працівника","07:00","08:00","09:00","10:00","11:00","12:00","13:00","14:00","15:00","Лікарняне?","УСЬОГО"]
[null,"Богдана В","керівник","керівник","керівник","керівник","керівник","керівник","керівник","керівник","керівник",null,{"$f":"IFERROR(COUNTIF(Субота[[#This Row],[07:00]:[15:00]],\"*\"),\"\")","v":9}]
[null,"Євген О",null,"касир","касир","касир","касир",{"$nulls":5},{"$f":"IFERROR(COUNTIF(Субота[[#This Row],[07:00]:[15:00]],\"*\"),\"\")","v":4}]
[null,"Павло П",null,"адміністратор","адміністратор","адміністратор","адміністратор ","адміністратор","адміністратор","адміністратор",null,null,{"$f":"IFERROR(COUNTIF(Субота[[#This Row],[07:00]:[15:00]],\"*\"),\"\")","v":7}]
[null,"Степан К",null,"адміністратор","адміністратор","адміністратор","адміністратор ","адміністратор","адміністратор","адміністратор",null,null,{"$f":"IFERROR(COUNTIF(Субота[[#This Row],[07:00]:[15:00]],\"*\"),\"\")","v":7}]
[null,"Іван К",{"$nulls":9},"Лікарняне",{"$f":"IFERROR(COUNTIF(Субота[[#This Row],[07:00]:[15:00]],\"*\"),\"\")","v":0}]
[null,"Вероніка Б",{"$nulls":5},"касир","касир","касир","касир",null,{"$f":"IFERROR(COUNTIF(Субота[[#This Row],[07:00]:[15:00]],\"*\"),\"\")","v":4}]

{"sheet":"Неділя","index":6,"n_rows":10,"n_cols":13,"rows_kept":10,"merged":[[1,1,2,1],[1,2,1,10],[1,11,1,12],[2,2,2,10],[2,11,2,12]]}
[null,{"$f":"Заголовок_ГРАФІК_ЗМІН","v":"ГРАФІК ЗМІН"}]
[null,"НЕДІЛЯ","На тиждень: ",{"$nulls":8},{"$f":"ДАТА","v":"ДАТА"}]
[null,null,"Назва відділу: ",{"$nulls":8},{"$f":"ВІДДІЛ","v":"ВІДДІЛ"}]
[null,"Ім’я працівника","07:00","08:00","09:00","10:00","11:00","12:00","13:00","14:00","15:00","Лікарняне?","УСЬОГО"]
[null,"Богдана В","керівник","керівник","керівник","керівник","керівник","керівник","керівник","керівник","керівник",null,{"$f":"IFERROR(COUNTIF(Неділя[[#This Row],[07:00]:[15:00]],\"*\"),\"\")","v":9}]
[null,"Євген О",null,"касир","касир","касир","касир",{"$nulls":5},{"$f":"IFERROR(COUNTIF(Неділя[[#This Row],[07:00]:[15:00]],\"*\"),\"\")","v":4}]
[null,"Павло П",null,"адміністратор","адміністратор","адміністратор","адміністратор ","адміністратор","адміністратор","адміністратор",null,null,{"$f":"IFERROR(COUNTIF(Неділя[[#This Row],[07:00]:[15:00]],\"*\"),\"\")","v":7}]
[null,"Степан К",null,"адміністратор","адміністратор","адміністратор","адміністратор ","адміністратор","адміністратор","адміністратор",null,null,{"$f":"IFERROR(COUNTIF(Неділя[[#This Row],[07:00]:[15:00]],\"*\"),\"\")","v":7}]
[null,"Іван К",{"$nulls":9},"Лікарняне",{"$f":"IFERROR(COUNTIF(Неділя[[#This Row],[07:00]:[15:00]],\"*\"),\"\")","v":0}]
[null,"Вероніка Б",{"$nulls":5},"касир","касир","касир","касир",null,{"$f":"IFERROR(COUNTIF(Неділя[[#This Row],[07:00]:[15:00]],\"*\"),\"\")","v":4}]